[Event "Titled Tuesday Blitz February 21 Late 2023"]
[White "De Souza, Cristiano Gomes"]
[Black "Better_Chess_Faster"]
[WhiteFideId "2151758"]
[WhiteElo "2018"]
[BlackElo "1982"]
[Result "1-0"]
[Round "10"]
[TimeControl "180+2"]
[Date "2023.02.21"]
[WhiteClock "0:02:34"]
[BlackClock "0:01:55"]

1. d4 {[%clk 0:03:00]}  f5 {[%clk 0:02:58]} 2. g3 {[%clk 0:03:00]}  Nf6 {[%clk 0:02:58]} 3. Bg2 {[%clk 0:03:00]}  d5 {[%clk 0:02:58]} 4. Nf3 {[%clk 0:02:59]}  e6 {[%clk 0:02:59]} 5. O-O {[%clk 0:02:59]}  Bd6 {[%clk 0:02:59]} 6. b3 {[%clk 0:02:59]}  O-O {[%clk 0:02:58]} 7. Ba3 {[%clk 0:02:59]}  Nbd7 {[%clk 0:02:55]} 8. Qc1 {[%clk 0:02:59]}  Ne4 {[%clk 0:02:53]} 9. c4 {[%clk 0:02:57]}  Ndf6 {[%clk 0:02:51]} 10. Bxd6 {[%clk 0:02:57]}  cxd6 {[%clk 0:02:51]} 11. Nc3 {[%clk 0:02:57]}  Nxc3 {[%clk 0:02:47]} 12. Qxc3 {[%clk 0:02:57]}  Ne4 {[%clk 0:02:46]} 13. Qc2 {[%clk 0:02:58]}  dxc4 {[%clk 0:02:44]} 14. bxc4 {[%clk 0:02:55]}  b6 {[%clk 0:02:42]} 15. Nd2 {[%clk 0:02:55]}  Bb7 {[%clk 0:02:42]} 16. Nxe4 {[%clk 0:02:55]}  fxe4 {[%clk 0:02:41]} 17. Bxe4 {[%clk 0:02:56]}  Bxe4 {[%clk 0:02:38]} 18. Qxe4 {[%clk 0:02:57]}  Qf6 {[%clk 0:02:34]} 19. f4 {[%clk 0:02:55]}  Rac8 {[%clk 0:02:33]} 20. Rac1 {[%clk 0:02:54]}  Rc7 {[%clk 0:02:31]} 21. Rc3 {[%clk 0:02:54]}  Rfc8 {[%clk 0:02:30]} 22. Rfc1 {[%clk 0:02:54]}  d5 {[%clk 0:02:28]} 23. Qd3 {[%clk 0:02:53]}  Qf5 {[%clk 0:02:19]} 24. Qxf5 {[%clk 0:02:45]}  exf5 {[%clk 0:02:18]} 25. c5 {[%clk 0:02:44]}  bxc5 {[%clk 0:02:19]} 26. Rxc5 {[%clk 0:02:44]}  Rxc5 {[%clk 0:02:15]} 27. dxc5 {[%clk 0:02:36]}  Kf7 {[%clk 0:02:12]} 28. Kf2 {[%clk 0:02:36]}  Ke6 {[%clk 0:02:12]} 29. Ke3 {[%clk 0:02:37]}  Rc6 {[%clk 0:02:07]} 30. Kd4 {[%clk 0:02:37]}  Ra6 {[%clk 0:02:07]} 31. c6 {[%clk 0:02:34]}  Ra4+ {[%clk 0:02:05]} 32. Kc5 {[%clk 0:02:34]}  Rc4+ {[%clk 0:02:01]} 33. Rxc4 {[%clk 0:02:34]}  dxc4 {[%clk 0:02:00]} 34. Kxc4 {[%clk 0:02:34]}  Kd6 {[%clk 0:02:01]} 35. Kb5 {[%clk 0:02:34]}  a6+ {[%clk 0:01:55]} 36. Kb6 {[%clk 0:02:34]} 1-0


[Site "https://www.chess.com"]

[Event "Titled Tuesday Blitz February 21 Late 2023"]
[White "Desideri, Ricardo Maruchi"]
[Black "Huang, Alex"]
[WhiteFideId "2110440"]
[BlackFideId "4302508"]
[WhiteElo "1959"]
[BlackElo "2009"]
[Result "0-1"]
[Round "10"]
[TimeControl "180+2"]
[Date "2023.02.21"]
[WhiteClock "0:00:01"]
[BlackClock "0:01:03"]

1. e4 {[%clk 0:02:58]}  d6 {[%clk 0:02:57]} 2. d4 {[%clk 0:02:50]}  Nf6 {[%clk 0:02:57]} 3. Nc3 {[%clk 0:02:49]}  g6 {[%clk 0:02:58]} 4. Be2 {[%clk 0:02:42]}  Bg7 {[%clk 0:02:57]} 5. g4 {[%clk 0:02:41]}  a6 {[%clk 0:02:44]} 6. g5 {[%clk 0:02:36]}  Nfd7 {[%clk 0:02:44]} 7. f4 {[%clk 0:02:34]}  b5 {[%clk 0:02:43]} 8. a3 {[%clk 0:02:32]}  Bb7 {[%clk 0:02:41]} 9. Be3 {[%clk 0:02:31]}  e5 {[%clk 0:02:30]} 10. dxe5 {[%clk 0:02:21]}  dxe5 {[%clk 0:02:30]} 11. f5 {[%clk 0:02:20]}  gxf5 {[%clk 0:02:30]} 12. exf5 {[%clk 0:01:58]}  Bxh1 {[%clk 0:02:29]} 13. f6 {[%clk 0:01:58]}  Nxf6 {[%clk 0:02:10]} 14. gxf6 {[%clk 0:01:51]}  Qxd1+ {[%clk 0:02:09]} 15. Rxd1 {[%clk 0:01:47]}  Bxf6 {[%clk 0:02:09]} 16. Nd5 {[%clk 0:01:36]}  Bxd5 {[%clk 0:02:09]} 17. Rxd5 {[%clk 0:01:34]}  Nd7 {[%clk 0:01:53]} 18. Bg4 {[%clk 0:01:31]}  Rd8 {[%clk 0:01:48]} 19. Nf3 {[%clk 0:00:58]}  Rg8 {[%clk 0:01:45]} 20. Bh5 {[%clk 0:00:50]}  Ke7 {[%clk 0:01:34]} 21. Bd2 {[%clk 0:00:16]}  Ke6 {[%clk 0:01:21]} 22. Rd3 {[%clk 0:00:14]}  Nb6 {[%clk 0:01:17]} 23. Rc3 {[%clk 0:00:10]}  Rd7 {[%clk 0:01:12]} 24. Rc6+ {[%clk 0:00:09]}  Kd5 {[%clk 0:01:06]} 25. Rxf6 {[%clk 0:00:06]}  e4 {[%clk 0:01:04]} 26. Bxf7+ {[%clk 0:00:05]}  Rxf7 {[%clk 0:01:04]} 27. Rxf7 {[%clk 0:00:04]}  exf3 {[%clk 0:01:04]} 28. Rxf3 {[%clk 0:00:04]}  Nc4 {[%clk 0:01:04]} 29. Rd3+ {[%clk 0:00:02]}  Kc6 {[%clk 0:01:03]} 30. Bc3 {[%clk 0:00:02]}  Rg1+ {[%clk 0:01:03]} 31. Kf2 {[%clk 0:00:02]}  Rh1 {[%clk 0:01:03]} 32. Kg2 {[%clk 0:00:01]}  Rc1 {[%clk 0:01:03]} 0-1


[Site "https://www.chess.com"]

[Event "Titled Tuesday Blitz February 21 Late 2023"]
[White "Pissama Ntsaou, Martial"]
[Black "Jesusesmifuerza"]
[WhiteFideId "17400864"]
[WhiteElo "1430"]
[BlackElo "2009"]
[Result "1-0"]
[Round "10"]
[TimeControl "180+2"]
[Date "2023.02.21"]
[WhiteClock "0:01:43"]
[BlackClock "0:02:09"]

1. e4 {[%clk 0:03:00]}  c5 {[%clk 0:02:59]} 2. Nf3 {[%clk 0:03:00]}  e6 {[%clk 0:02:59]} 3. g3 {[%clk 0:02:59]}  Nc6 {[%clk 0:02:54]} 4. Bg2 {[%clk 0:02:57]}  d6 {[%clk 0:02:54]} 5. O-O {[%clk 0:02:56]}  Nf6 {[%clk 0:02:55]} 6. d4 {[%clk 0:02:48]}  Nxe4 {[%clk 0:02:49]} 7. Re1 {[%clk 0:02:48]}  Nf6 {[%clk 0:02:47]} 8. d5 {[%clk 0:02:47]}  Nb8 {[%clk 0:02:38]} 9. dxe6 {[%clk 0:02:45]}  Bxe6 {[%clk 0:02:39]} 10. Ng5 {[%clk 0:02:45]}  Be7 {[%clk 0:02:36]} 11. Bxb7 {[%clk 0:02:43]}  Nbd7 {[%clk 0:02:35]} 12. Bxa8 {[%clk 0:02:41]}  Qxa8 {[%clk 0:02:36]} 13. Nxe6 {[%clk 0:02:40]}  fxe6 {[%clk 0:02:36]} 14. Rxe6 {[%clk 0:02:40]}  Ne5 {[%clk 0:02:36]} 15. Rxe5 {[%clk 0:02:19]}  dxe5 {[%clk 0:02:30]} 16. Nd2 {[%clk 0:02:00]}  O-O {[%clk 0:02:28]} 17. Qe2 {[%clk 0:01:53]}  e4 {[%clk 0:02:25]} 18. b3 {[%clk 0:01:50]}  h5 {[%clk 0:02:18]} 19. Bb2 {[%clk 0:01:50]}  Ng4 {[%clk 0:02:17]} 20. Qxe4 {[%clk 0:01:45]}  Rxf2 {[%clk 0:02:09]} 21. Qxa8+ {[%clk 0:01:43]} 1-0


[Site "https://www.chess.com"]

[Event "Titled Tuesday Blitz February 21 Late 2023"]
[White "Caruana, Fabiano"]
[Black "Vachier-Lagrave, Maxime"]
[WhiteFideId "2020009"]
[BlackFideId "623539"]
[WhiteElo "2764"]
[BlackElo "2742"]
[Result "1/2-1/2"]
[Round "11"]
[TimeControl "180+2"]
[Date "2023.02.21"]
[WhiteClock "0:00:54"]
[BlackClock "0:01:21"]

1. c4 {[%clk 0:03:00]}  e5 {[%clk 0:02:59]} 2. Nc3 {[%clk 0:03:01]}  Nf6 {[%clk 0:02:58]} 3. Nf3 {[%clk 0:03:01]}  Nc6 {[%clk 0:02:58]} 4. g3 {[%clk 0:03:02]}  Bb4 {[%clk 0:02:58]} 5. Bg2 {[%clk 0:03:02]}  O-O {[%clk 0:02:58]} 6. Nd5 {[%clk 0:03:02]}  Re8 {[%clk 0:02:55]} 7. Nxb4 {[%clk 0:02:52]}  Nxb4 {[%clk 0:02:55]} 8. a3 {[%clk 0:02:46]}  Nc6 {[%clk 0:02:52]} 9. d3 {[%clk 0:02:47]}  e4 {[%clk 0:02:51]} 10. dxe4 {[%clk 0:02:47]}  Nxe4 {[%clk 0:02:52]} 11. O-O {[%clk 0:02:47]}  d6 {[%clk 0:02:52]} 12. e3 {[%clk 0:02:34]}  Bg4 {[%clk 0:02:49]} 13. h3 {[%clk 0:02:34]}  Bxf3 {[%clk 0:02:39]} 14. Qxf3 {[%clk 0:02:30]}  a5 {[%clk 0:02:34]} 15. b3 {[%clk 0:02:28]}  Qf6 {[%clk 0:02:26]} 16. Qxf6 {[%clk 0:02:27]}  Nxf6 {[%clk 0:02:27]} 17. Bb2 {[%clk 0:02:25]}  Ne4 {[%clk 0:02:27]} 18. Bxe4 {[%clk 0:02:04]}  Rxe4 {[%clk 0:02:27]} 19. Rac1 {[%clk 0:02:04]}  b6 {[%clk 0:02:24]} 20. Kg2 {[%clk 0:02:04]}  f6 {[%clk 0:02:24]} 21. Rfd1 {[%clk 0:02:03]}  Kf7 {[%clk 0:02:23]} 22. h4 {[%clk 0:01:58]}  Nd8 {[%clk 0:02:14]} 23. Kf3 {[%clk 0:01:56]}  Re8 {[%clk 0:02:12]} 24. Bc3 {[%clk 0:01:50]}  Nc6 {[%clk 0:02:06]} 25. Ke2 {[%clk 0:01:43]}  Ne5 {[%clk 0:01:58]} 26. Rd4 {[%clk 0:01:37]}  Nc6 {[%clk 0:01:57]} 27. Rf4 {[%clk 0:01:37]}  Ne5 {[%clk 0:01:56]} 28. h5 {[%clk 0:01:36]}  h6 {[%clk 0:01:55]} 29. Bb2 {[%clk 0:01:32]}  Nd7 {[%clk 0:01:54]} 30. Bc3 {[%clk 0:01:19]}  Nc5 {[%clk 0:01:52]} 31. Rb1 {[%clk 0:01:20]}  Rad8 {[%clk 0:01:41]} 32. Rd4 {[%clk 0:01:19]}  Ne4 {[%clk 0:01:34]} 33. Be1 {[%clk 0:01:18]}  Ra8 {[%clk 0:01:33]} 34. f3 {[%clk 0:01:16]}  Nc5 {[%clk 0:01:33]} 35. g4 {[%clk 0:01:15]}  Ne6 {[%clk 0:01:31]} 36. Rdd1 {[%clk 0:01:10]}  Nc5 {[%clk 0:01:31]} 37. e4 {[%clk 0:01:09]}  Nd7 {[%clk 0:01:26]} 38. Bf2 {[%clk 0:01:08]}  Ne5 {[%clk 0:01:26]} 39. Be3 {[%clk 0:01:07]}  a4 {[%clk 0:01:23]} 40. Bd4 {[%clk 0:00:53]}  axb3 {[%clk 0:01:22]} 41. Bxe5 {[%clk 0:00:54]}  Rxe5 {[%clk 0:01:21]} 42. Rxb3 {[%clk 0:00:54]} 1/2-1/2


[Site "https://www.chess.com"]

[Event "Titled Tuesday Blitz February 21 Late 2023"]
[White "Bluebaum, Matthias"]
[Black "Kamsky, Gata"]
[WhiteFideId "24651516"]
[BlackFideId "2000024"]
[WhiteElo "2669"]
[BlackElo "2665"]
[Result "0-1"]
[Round "11"]
[TimeControl "180+2"]
[Date "2023.02.21"]
[WhiteClock "0:00:08"]
[BlackClock "0:00:11"]

1. d4 {[%clk 0:03:00]}  Nf6 {[%clk 0:02:59]} 2. c4 {[%clk 0:03:00]}  g6 {[%clk 0:03:00]} 3. Nc3 {[%clk 0:03:01]}  Bg7 {[%clk 0:03:00]} 4. e4 {[%clk 0:03:02]}  d6 {[%clk 0:03:01]} 5. Nf3 {[%clk 0:03:02]}  O-O {[%clk 0:03:01]} 6. Be2 {[%clk 0:03:03]}  e5 {[%clk 0:03:01]} 7. Be3 {[%clk 0:03:04]}  Ng4 {[%clk 0:02:53]} 8. Bg5 {[%clk 0:03:04]}  f6 {[%clk 0:02:51]} 9. Bh4 {[%clk 0:03:04]}  Nc6 {[%clk 0:02:40]} 10. d5 {[%clk 0:03:04]}  Nb8 {[%clk 0:02:31]} 11. Nd2 {[%clk 0:02:59]}  Nh6 {[%clk 0:02:29]} 12. f3 {[%clk 0:02:57]}  Nf7 {[%clk 0:02:23]} 13. b4 {[%clk 0:02:56]}  a5 {[%clk 0:02:20]} 14. a3 {[%clk 0:02:56]}  Na6 {[%clk 0:02:19]} 15. Rb1 {[%clk 0:02:56]}  Bh6 {[%clk 0:02:17]} 16. Bf2 {[%clk 0:02:56]}  f5 {[%clk 0:02:16]} 17. c5 {[%clk 0:02:56]}  Qg5 {[%clk 0:02:12]} 18. Nf1 {[%clk 0:02:33]}  axb4 {[%clk 0:02:04]} 19. axb4 {[%clk 0:02:32]}  fxe4 {[%clk 0:01:53]} 20. h4 {[%clk 0:02:16]}  Qe7 {[%clk 0:01:34]} 21. Nxe4 {[%clk 0:02:12]}  Bf5 {[%clk 0:01:32]} 22. Nfg3 {[%clk 0:02:09]}  Bf4 {[%clk 0:01:27]} 23. c6 {[%clk 0:01:32]}  bxc6 {[%clk 0:01:21]} 24. dxc6 {[%clk 0:01:33]}  d5 {[%clk 0:01:08]} 25. Qxd5 {[%clk 0:01:31]}  Nxb4 {[%clk 0:00:59]} 26. Qc4 {[%clk 0:01:28]}  Rfb8 {[%clk 0:00:38]} 27. O-O {[%clk 0:01:15]}  Be6 {[%clk 0:00:37]} 28. Qc5 {[%clk 0:01:03]}  Nd5 {[%clk 0:00:31]} 29. Bc4 {[%clk 0:00:50]}  Rxb1 {[%clk 0:00:16]} 30. Rxb1 {[%clk 0:00:48]}  Qxc5 {[%clk 0:00:16]} 31. Nxc5 {[%clk 0:00:37]}  Nc3 {[%clk 0:00:17]} 32. Nxe6 {[%clk 0:00:38]}  Nxb1 {[%clk 0:00:16]} 33. Nxc7 {[%clk 0:00:39]}  Ra1 {[%clk 0:00:13]} 34. Kh2 {[%clk 0:00:15]}  Nd2 {[%clk 0:00:13]} 35. Bb5 {[%clk 0:00:08]}  Nf1+ {[%clk 0:00:10]} 36. Bxf1 {[%clk 0:00:04]}  Rxf1 {[%clk 0:00:11]} 37. Nd5 {[%clk 0:00:04]}  Rxf2 {[%clk 0:00:10]} 38. c7 {[%clk 0:00:04]}  Nd6 {[%clk 0:00:09]} 39. Kg1 {[%clk 0:00:04]}  Rc2 {[%clk 0:00:09]} 40. Ne4 {[%clk 0:00:03]}  Nxe4 {[%clk 0:00:09]} 41. fxe4 {[%clk 0:00:04]}  Kf7 {[%clk 0:00:09]} 42. Kf1 {[%clk 0:00:05]}  Bg3 {[%clk 0:00:09]} 43. Ne3 {[%clk 0:00:04]}  Rxc7 {[%clk 0:00:09]} 44. Nd5 {[%clk 0:00:05]}  Rc2 {[%clk 0:00:08]} 45. Ne3 {[%clk 0:00:05]}  Rf2+ {[%clk 0:00:09]} 46. Kg1 {[%clk 0:00:06]}  Bxh4 {[%clk 0:00:09]} 47. Ng4 {[%clk 0:00:06]}  Rf4 {[%clk 0:00:09]} 48. Nxe5+ {[%clk 0:00:06]}  Ke6 {[%clk 0:00:10]} 49. Nd3 {[%clk 0:00:07]}  Rxe4 {[%clk 0:00:10]} 50. Nc5+ {[%clk 0:00:08]}  Kd5 {[%clk 0:00:10]} 51. Nd3 {[%clk 0:00:08]}  Kd4 {[%clk 0:00:09]} 52. Nb4 {[%clk 0:00:09]}  Bg3 {[%clk 0:00:10]} 53. Nc2+ {[%clk 0:00:09]}  Kd3 {[%clk 0:00:10]} 54. Kf1 {[%clk 0:00:08]}  Kxc2 {[%clk 0:00:10]} 55. Kg1 {[%clk 0:00:08]}  Re1# {[%clk 0:00:11]} 0-1


[Site "https://www.chess.com"]

[Event "Titled Tuesday Blitz February 21 Late 2023"]
[White "Makarian, Rudik"]
[Black "Naroditsky, Daniel"]
[WhiteFideId "44105681"]
[BlackFideId "2026961"]
[WhiteElo "2545"]
[BlackElo "2618"]
[Result "0-1"]
[Round "11"]
[TimeControl "180+2"]
[Date "2023.02.21"]
[WhiteClock "0:01:57"]
[BlackClock "0:01:08"]

1. d4 {[%clk 0:03:00]}  Nf6 {[%clk 0:02:59]} 2. c4 {[%clk 0:03:00]}  g6 {[%clk 0:02:58]} 3. Nc3 {[%clk 0:02:59]}  Bg7 {[%clk 0:02:59]} 4. e4 {[%clk 0:02:59]}  d6 {[%clk 0:03:00]} 5. Be2 {[%clk 0:03:00]}  O-O {[%clk 0:03:00]} 6. Be3 {[%clk 0:03:00]}  a5 {[%clk 0:02:57]} 7. Nf3 {[%clk 0:03:00]}  Na6 {[%clk 0:02:55]} 8. O-O {[%clk 0:02:58]}  e5 {[%clk 0:02:40]} 9. d5 {[%clk 0:02:56]}  Nc5 {[%clk 0:02:31]} 10. Nd2 {[%clk 0:02:57]}  Kh8 {[%clk 0:02:18]} 11. a3 {[%clk 0:02:50]}  a4 {[%clk 0:01:51]} 12. Bxc5 {[%clk 0:02:50]}  dxc5 {[%clk 0:01:52]} 13. Nxa4 {[%clk 0:02:51]}  b6 {[%clk 0:01:53]} 14. b4 {[%clk 0:02:47]}  Bh6 {[%clk 0:01:53]} 15. Nc3 {[%clk 0:02:37]}  cxb4 {[%clk 0:01:51]} 16. Nb5 {[%clk 0:02:36]}  c6 {[%clk 0:01:39]} 17. dxc6 {[%clk 0:02:15]}  Qxd2 {[%clk 0:01:40]} 18. axb4 {[%clk 0:02:15]}  Rxa1 {[%clk 0:01:33]} 19. Qxa1 {[%clk 0:02:16]}  Qxe2 {[%clk 0:01:33]} 20. Qxe5 {[%clk 0:02:13]}  Bg7 {[%clk 0:01:23]} 21. Nd6 {[%clk 0:02:10]}  Be6 {[%clk 0:01:14]} 22. Qb5 {[%clk 0:01:57]}  Nxe4 {[%clk 0:01:08]} 0-1


[Site "https://www.chess.com"]

[Event "Titled Tuesday Blitz February 21 Late 2023"]
[White "Bortnyk, Olexandr"]
[Black "Chigaev, Maksim"]
[WhiteFideId "14120828"]
[BlackFideId "4108116"]
[WhiteElo "2605"]
[BlackElo "2628"]
[Result "0-1"]
[Round "11"]
[TimeControl "180+2"]
[Date "2023.02.21"]
[WhiteClock "0:00:04"]
[BlackClock "0:00:06"]

1. d4 {[%clk 0:03:00]}  Nf6 {[%clk 0:02:59]} 2. Nc3 {[%clk 0:03:00]}  d5 {[%clk 0:02:58]} 3. Bf4 {[%clk 0:03:00]}  g6 {[%clk 0:02:58]} 4. e3 {[%clk 0:03:00]}  Nh5 {[%clk 0:02:59]} 5. Be5 {[%clk 0:02:58]}  f6 {[%clk 0:02:59]} 6. Bg3 {[%clk 0:02:59]}  c6 {[%clk 0:03:00]} 7. e4 {[%clk 0:02:47]}  dxe4 {[%clk 0:02:53]} 8. Nxe4 {[%clk 0:02:48]}  Bf5 {[%clk 0:02:52]} 9. Nc5 {[%clk 0:02:37]}  e5 {[%clk 0:02:35]} 10. Nb3 {[%clk 0:02:24]}  Nd7 {[%clk 0:02:23]} 11. Be2 {[%clk 0:02:17]}  Nxg3 {[%clk 0:02:19]} 12. hxg3 {[%clk 0:02:18]}  Qe7 {[%clk 0:02:05]} 13. d5 {[%clk 0:02:15]}  O-O-O {[%clk 0:01:56]} 14. dxc6 {[%clk 0:02:11]}  bxc6 {[%clk 0:01:55]} 15. Nf3 {[%clk 0:02:05]}  Nb6 {[%clk 0:01:50]} 16. Qc1 {[%clk 0:02:04]}  g5 {[%clk 0:01:51]} 17. c3 {[%clk 0:01:56]}  h5 {[%clk 0:01:48]} 18. a4 {[%clk 0:01:53]}  h4 {[%clk 0:01:46]} 19. a5 {[%clk 0:01:42]}  Nd5 {[%clk 0:01:46]} 20. Ra4 {[%clk 0:01:40]}  Qc7 {[%clk 0:01:06]} 21. a6 {[%clk 0:01:14]}  Bd6 {[%clk 0:00:54]} 22. g4 {[%clk 0:01:10]}  Be6 {[%clk 0:00:53]} 23. Na5 {[%clk 0:01:08]}  Nf4 {[%clk 0:00:46]} 24. Nb7 {[%clk 0:01:07]}  Nxg2+ {[%clk 0:00:39]} 25. Kf1 {[%clk 0:01:07]}  Nf4 {[%clk 0:00:40]} 26. Qe3 {[%clk 0:01:05]}  Kb8 {[%clk 0:00:18]} 27. Nxd8 {[%clk 0:00:52]}  Rxd8 {[%clk 0:00:17]} 28. Nd2 {[%clk 0:00:51]}  Qb6 {[%clk 0:00:09]} 29. Qxb6+ {[%clk 0:00:28]}  axb6 {[%clk 0:00:09]} 30. Ne4 {[%clk 0:00:28]}  Be7 {[%clk 0:00:05]} 31. f3 {[%clk 0:00:26]}  Ka7 {[%clk 0:00:05]} 32. Kf2 {[%clk 0:00:22]}  b5 {[%clk 0:00:05]} 33. Raa1 {[%clk 0:00:22]}  f5 {[%clk 0:00:05]} 34. gxf5 {[%clk 0:00:20]}  Bxf5 {[%clk 0:00:04]} 35. Rad1 {[%clk 0:00:18]}  Rf8 {[%clk 0:00:05]} 36. Ke3 {[%clk 0:00:14]}  Kxa6 {[%clk 0:00:05]} 37. Rdg1 {[%clk 0:00:14]}  Kb6 {[%clk 0:00:05]} 38. b4 {[%clk 0:00:13]}  Nd5+ {[%clk 0:00:05]} 39. Kd2 {[%clk 0:00:13]}  g4 {[%clk 0:00:05]} 40. Nc5 {[%clk 0:00:10]}  g3 {[%clk 0:00:05]} 41. Bd3 {[%clk 0:00:09]}  Bxc5 {[%clk 0:00:05]} 42. bxc5+ {[%clk 0:00:09]}  Kxc5 {[%clk 0:00:05]} 43. Rxh4 {[%clk 0:00:09]}  Bxd3 {[%clk 0:00:05]} 44. Kxd3 {[%clk 0:00:08]}  Rxf3+ {[%clk 0:00:06]} 45. Ke4 {[%clk 0:00:09]}  Re3+ {[%clk 0:00:05]} 46. Kf5 {[%clk 0:00:09]}  Nxc3 {[%clk 0:00:05]} 47. Ke6 {[%clk 0:00:05]}  Ne2 {[%clk 0:00:05]} 48. Ra1 {[%clk 0:00:05]}  Nd4+ {[%clk 0:00:05]} 49. Kd7 {[%clk 0:00:05]}  Nf3 {[%clk 0:00:05]} 50. Rh6 {[%clk 0:00:05]}  Rd3+ {[%clk 0:00:03]} 51. Kc7 {[%clk 0:00:05]}  Nd4 {[%clk 0:00:04]} 52. Rg6 {[%clk 0:00:05]}  b4 {[%clk 0:00:04]} 53. Re1 {[%clk 0:00:04]}  b3 {[%clk 0:00:04]} 54. Rxe5+ {[%clk 0:00:03]}  Kc4 {[%clk 0:00:05]} 55. Re1 {[%clk 0:00:01]}  c5 {[%clk 0:00:05]} 56. Kb6 {[%clk 0:00:02]}  b2 {[%clk 0:00:05]} 57. Rg5 {[%clk 0:00:02]}  Rb3+ {[%clk 0:00:04]} 58. Kc7 {[%clk 0:00:01]}  b1=Q {[%clk 0:00:05]} 59. Rxb1 {[%clk 0:00:01]}  Rxb1 {[%clk 0:00:06]} 60. Rxg3 {[%clk 0:00:02]}  Ra1 {[%clk 0:00:06]} 61. Kb6 {[%clk 0:00:02]}  Rb1+ {[%clk 0:00:06]} 62. Kc7 {[%clk 0:00:03]}  Rh1 {[%clk 0:00:07]} 63. Kb6 {[%clk 0:00:02]}  Rh6+ {[%clk 0:00:07]} 64. Kc7 {[%clk 0:00:02]}  Kb4 {[%clk 0:00:08]} 65. Rg4 {[%clk 0:00:02]}  Rf6 {[%clk 0:00:07]} 66. Rh4 {[%clk 0:00:02]}  Rc6+ {[%clk 0:00:07]} 67. Kd7 {[%clk 0:00:02]}  Ra6 {[%clk 0:00:07]} 68. Kc7 {[%clk 0:00:02]}  Kb5 {[%clk 0:00:07]} 69. Kb7 {[%clk 0:00:02]}  Rg6 {[%clk 0:00:07]} 70. Rh7 {[%clk 0:00:02]}  c4 {[%clk 0:00:05]} 71. Rh5+ {[%clk 0:00:03]}  Kb4 {[%clk 0:00:06]} 72. Rh6 {[%clk 0:00:04]}  Rxh6 {[%clk 0:00:06]} 0-1


[Site "https://www.chess.com"]

[Event "Titled Tuesday Blitz February 21 Late 2023"]
[White "Gokerkan, Cem Kaan"]
[Black "Martinez Alcantara, Jose Eduardo"]
[WhiteFideId "6336760"]
[BlackFideId "3805662"]
[WhiteElo "2500"]
[BlackElo "2619"]
[Result "1-0"]
[Round "11"]
[TimeControl "180+2"]
[Date "2023.02.21"]
[WhiteClock "0:00:47"]
[BlackClock "0:00:20"]

1. e4 {[%clk 0:03:00]}  e5 {[%clk 0:02:58]} 2. Nf3 {[%clk 0:03:01]}  Nf6 {[%clk 0:02:58]} 3. Bc4 {[%clk 0:03:00]}  Nxe4 {[%clk 0:02:42]} 4. Nc3 {[%clk 0:03:00]}  Nd6 {[%clk 0:02:42]} 5. Bb3 {[%clk 0:03:00]}  Be7 {[%clk 0:02:42]} 6. Nxe5 {[%clk 0:02:59]}  Nc6 {[%clk 0:02:42]} 7. d4 {[%clk 0:02:59]}  O-O {[%clk 0:02:38]} 8. O-O {[%clk 0:02:59]}  Nf5 {[%clk 0:02:34]} 9. Nxf7 {[%clk 0:02:50]}  Rxf7 {[%clk 0:02:34]} 10. Bxf7+ {[%clk 0:02:51]}  Kxf7 {[%clk 0:02:33]} 11. Qh5+ {[%clk 0:02:51]}  g6 {[%clk 0:02:33]} 12. Qxh7+ {[%clk 0:02:51]}  Ng7 {[%clk 0:02:34]} 13. Nd5 {[%clk 0:02:21]}  d6 {[%clk 0:02:08]} 14. Re1 {[%clk 0:02:18]}  Bf8 {[%clk 0:01:59]} 15. Bh6 {[%clk 0:01:39]}  Bf5 {[%clk 0:01:25]} 16. Re3 {[%clk 0:01:39]}  g5 {[%clk 0:01:11]} 17. Rf3 {[%clk 0:01:29]}  Nxd4 {[%clk 0:01:11]} 18. Rxf5+ {[%clk 0:01:18]}  Nxf5 {[%clk 0:01:12]} 19. Bxg7 {[%clk 0:01:18]}  Nxg7 {[%clk 0:01:09]} 20. Re1 {[%clk 0:01:16]}  Qd7 {[%clk 0:00:58]} 21. Re3 {[%clk 0:01:11]}  g4 {[%clk 0:00:19]} 22. Re4 {[%clk 0:01:02]}  Qf5 {[%clk 0:00:11]} 23. Rf4 {[%clk 0:01:00]}  Qxf4 {[%clk 0:00:11]} 24. Nxf4 {[%clk 0:01:01]}  Re8 {[%clk 0:00:12]} 25. Qg6+ {[%clk 0:00:57]}  Kg8 {[%clk 0:00:12]} 26. g3 {[%clk 0:00:58]}  Re5 {[%clk 0:00:13]} 27. Qxg4 {[%clk 0:00:58]}  Kf7 {[%clk 0:00:14]} 28. Kg2 {[%clk 0:00:55]}  Rf5 {[%clk 0:00:10]} 29. Qg6+ {[%clk 0:00:52]}  Ke7 {[%clk 0:00:08]} 30. h4 {[%clk 0:00:49]}  c6 {[%clk 0:00:07]} 31. h5 {[%clk 0:00:49]}  Rf6 {[%clk 0:00:08]} 32. Qg5 {[%clk 0:00:49]}  Kf7 {[%clk 0:00:08]} 33. h6 {[%clk 0:00:47]}  Nf5 {[%clk 0:00:08]} 34. Qh5+ {[%clk 0:00:47]}  Kg8 {[%clk 0:00:07]} 35. Qg5+ {[%clk 0:00:45]}  Kf7 {[%clk 0:00:07]} 36. h7 {[%clk 0:00:44]}  Bg7 {[%clk 0:00:08]} 37. Qh5+ {[%clk 0:00:44]}  Ke7 {[%clk 0:00:09]} 38. h8=Q {[%clk 0:00:43]}  Bxh8 {[%clk 0:00:09]} 39. Qxh8 {[%clk 0:00:44]}  Rf8 {[%clk 0:00:10]} 40. Ng6+ {[%clk 0:00:44]}  Ke6 {[%clk 0:00:11]} 41. Qxf8 {[%clk 0:00:44]}  Nd4 {[%clk 0:00:12]} 42. Qe7+ {[%clk 0:00:44]}  Kd5 {[%clk 0:00:13]} 43. Nf4+ {[%clk 0:00:44]}  Kc5 {[%clk 0:00:14]} 44. Qe3 {[%clk 0:00:44]}  Kc4 {[%clk 0:00:13]} 45. Qc3+ {[%clk 0:00:44]}  Kb5 {[%clk 0:00:14]} 46. Qxd4 {[%clk 0:00:45]}  c5 {[%clk 0:00:15]} 47. Qxd6 {[%clk 0:00:45]}  b6 {[%clk 0:00:16]} 48. g4 {[%clk 0:00:43]}  Ka6 {[%clk 0:00:17]} 49. g5 {[%clk 0:00:44]}  Ka5 {[%clk 0:00:18]} 50. g6 {[%clk 0:00:44]}  c4 {[%clk 0:00:18]} 51. g7 {[%clk 0:00:45]}  a6 {[%clk 0:00:19]} 52. g8=Q {[%clk 0:00:46]}  c3 {[%clk 0:00:20]} 53. Qgd5+ {[%clk 0:00:46]}  b5 {[%clk 0:00:20]} 54. Qc7+ {[%clk 0:00:47]} 1-0


[Site "https://www.chess.com"]